Cogmind - Beta 16 @@@ ROGUE MODE // 2025.10.28 @ 17:34:15 Player: War__Prophet Result: Destroyed by Y-45 Defender with Beam Rifle Performance ------------- Evolutions (1) 500 Regions Visited (2) 400 Robots Destroyed (22) 110 Value Destroyed (485) 485 Prototype IDs (0) 0 Alien Tech Used (0) 0 Bonus (0) 0 TOTAL SCORE: 1495 Bonus ------- None Cogmind --------- Core Integrity 0/400 Matter 155/300 Energy 99/100 System Corruption 0% Temperature Cool (9) Movement Core (50) Location -9/Materials Parts ------- > --- POWER (1) -------- (None) > --- PROPULSION (4) --- (None) > --- UTILITY (2) ------ Weight Redist. System Signal Interpreter > --- WEAPON (2) ------- (None) > --- INVENTORY (5) ---- Medium Storage Unit Sensor Array Grenade Launcher Great Maul Great Maul Peak State ------------ > --- POWER ------------ Light Ion Engine > --- PROPULSION ------- Flight Unit Flight Unit Flight Unit Flight Unit > --- UTILITY ---------- Small Storage Unit Visual Processing Unit > --- WEAPON ----------- Assault Rifle Mace > --- INVENTORY -------- Ion Engine Ion Engine Wheel Wheel Wheel Compact Wheel Medium Storage Unit Grenade Launcher [Rating: 11] Favorites ----------- Power Ion Engine Engine Ion Engine Propulsion Wheel Wheel Wheel Flight Unit Flight Unit Utility Small Storage Unit Device Weight Redist. System Storage Small Storage Unit Processor Signal Interpreter Weapon Assault Rifle Ballistic Gun Assault Rifle Launcher Grenade Launcher Impact Weapon Mace Special Melee Weapon Datajack Build | -11 -10 -9 ------- Run | Yrd Mat Mat Slots Evolved 2 | . . 2 Power . | . . . Propulsion 2 | . . 2 Utility . | . . . Weapon . | . . . Parts Attached 28 | 6 5 17 Power 5 | 1 1 3 Engine 5 | 1 1 3 Core . | . . . Reactor . | . . . Propulsion 11 | 2 2 7 Treads . | . . . Leg . | . . . Wheel 5 | 2 2 1 Hover . | . . . Flight 6 | . . 6 Utility 6 | 1 2 3 Device 1 | . . 1 Storage 2 | 1 1 . Processor 3 | . 1 2 Hackware . | . . . Protection . | . . . Artifact . | . . . Weapon 6 | 2 . 4 Energy Gun . | . . . Energy Cannon . | . . . Ballistic Gun 2 | 2 . . Ballistic Cannon . | . . . Launcher 1 | . . 1 Special Weapon . | . . . Impact Weapon 2 | . . 2 Slashing Weapon . | . . . Piercing Weapon . | . . . Special Melee Weapon 1 | . . 1 Unidentified Prototypes . | . . . Parts Lost 11 | . . 11 Power 2 | . . 2 Propulsion 7 | . . 7 Utility . | . . . Weapon 2 | . . 2 Highest Loss Streak 4 | . . 4 To Critical Strikes . | . . . Average Backups 5 | . 6 6 Power 1 | . 1 . Propulsion 2 | . 2 2 Utility 1 | . . 1 Weapon 1 | . . 1 Tool/Special . | . . . Unused Backups 4 | . 2 2 Power 1 | . 1 . Propulsion 1 | . 1 . Utility 1 | . . 1 Weapon 1 | . . 1 Tool/Special . | . . . Average Slot Usage (%) 80 | . 91 74 Engine 10 | . 14 8 Wheel 19 | . 28 14 Flight 11 | . . 17 Storage 11 | . 14 9 Processor 9 | . 5 10 Ballistic Gun 12 | . 28 4 Impact Weapon 4 | . . 6 Peak Build Rating 11 | 6 9 11 Average Rating 7 | 4 6 7 On Entrance 5 | . 6 9 Avg Prop Armor Cover (%) . | . . . Naked Turns 3 | . . 3 Heaviest Build 19 | 14 19 17 Greatest Support 46 | 26 26 46 Greatest Overweight (x) . | . . . Average Overweight (x) . | . . . Largest Inventory Capacity 10 | 8 10 10 Average Capacity 8 | 6 9 7 Most Carried 10 | 1 10 10 Average Carried 5 | . 6 6 Final Capacity 10 | 8 10 5 Final Carried 10 | 1 10 5 Class Distribution -------------------- 72% | Mutant 22% | Scavenger-Sprinter 4% | Scavenger-Mutant Dominant Class ---------------- Mutant | -10/Materials Mutant | -9/Materials Resources | -11 -10 -9 ----------- Run | Yrd Mat Mat Matter Collected 678 | 210 268 200 Remotely . | . . . Salvage Created 606 | . 302 304 Parts 39 | . 24 15 Haulers Intercepted . | . . . Recyclers Shooed 4 | . 4 . Parts Field Recycled . | . . . Retrieved Matter . | . . . Parts Self-Destructed . | . . . Prevented . | . . . Parts Restored . | . . . Kills | -11 -10 -9 ------- Run | Yrd Mat Mat Combat Hostiles Destroyed 17 | . 8 9 Melee 1 | . . 1 Guns 9 | . 8 1 AOE 4 | . . 4 Classes Destroyed 7 | . 5 2 Builder 1 | . 1 . Recycler 2 | . 1 1 Operator 1 | . . 1 Watcher 1 | . 1 . Swarmer 9 | . 6 3 Grunt 7 | . 2 5 Sentry 1 | . . 1 Best Kill Streak 6 | . 6 4 Combat Bots Only 5 | . 5 3 Max Kills in Single Turn 3 | . 2 3 Gunslinging 1 | . 1 . Exploded 3 | . . 3 Melee 1 | . . 1 Uniques/NPCs Destroyed . | . . . Combat | -11 -10 -9 -------- Run | Yrd Mat Mat Hostile Shots Fired 158 | . 46 112 Missed 51 | . 12 39 Hits 107 | . 34 73 Projectile 107 | . 34 73 Critical Strikes 2 | . . 2 Damage Taken 1303 | . 282 1021 Core 466 | . 58 408 Absorbed by Shields . | . . . Core Remaining (%) 88 | 100 76 . Volleys Fired 39 | . 28 11 Largest 2 | . 2 2 Hottest 50 | . 40 50 Shots Fired 73 | . 56 17 Gun 66 | . 56 10 Cannon . | . . . Launcher 7 | . . 7 Special . | . . . Kinetic 66 | . 56 10 Thermal . | . . . Explosive 7 | . . 7 Electromagnetic . | . . . Robot Hit Streak 5 | . 5 5 Robot Miss Streak 4 | . 4 3 Penetration Max . | . . . Secondary Targets 2 | . 2 . Max Gunslinging Chain 1 | . 1 . Shots Hit Robots 59 | . 28 31 Core Hits 27 | . 14 13 Critical Kills 1 | . . 1 Critical Parts Destroyed 2 | . . 2 Critical Strikes 3 | . . 3 Destroy 1 | . . 1 Smash 2 | . . 2 Melee Attacks 34 | . . 34 Impact 34 | . . 34 Slashing . | . . . Piercing . | . . . Sneak Attacks . | . . . Combat Hostiles . | . . . Follow-up Attacks . | . . . Damage Inflicted 1513 | . 381 1132 Guns 417 | . 381 36 Cannons . | . . . Explosions 435 | . . 435 Melee 661 | . . 661 Ramming . | . . . Kinetic 417 | . 381 36 Thermal 185 | . . 185 Explosive 250 | . . 250 Electromagnetic . | . . . Impact 661 | . . 661 Slashing . | . . . Piercing . | . . . Highest Corruption . | . . . Average Corruption . | . . . Corruption Purged . | . . . Corruption Blocked . | . . . Overload Shots . | . . . Overflow Damage 160 | . . 160 Projectiles . | . . . Explosions 74 | . . 74 Melee 86 | . . 86 Knockbacks 4 | . . 4 Impact 3 | . . 3 Kinetic . | . . . Secondary 1 | . . 1 Self-Inflicted Damage 104 | . . 104 Shots 2 | . . 2 Rammed . | . . . Targets Rammed . | . . . Kicked . | . . . Crushed . | . . . Highest Temperature 6 | . . 6 Average Temperature 4 | . . 4 Received Heat Transfer 498 | . 42 456 Siege Activations . | . . . Martial Activations . | . . . Shielding Activations . | . . . Robots Disrupted . | . . . Combat Hostiles . | . . . Robots Corrupted 3 | . . 3 Combat Hostiles 3 | . . 3 Parts Fried 2 | . . 2 Impact Corruptions 4 | . . 4 Robots Melted . | . . . Combat Hostiles . | . . . Parts Melted . | . . . Heat Transferred 100 | . . 100 Parts Sabotaged . | . . . Parts Stolen . | . . . Parts Stripped . | . . . Power Chain Reactions . | . . . Alert | -11 -10 -9 ------- Run | Yrd Mat Mat Maximum Alert Level . | . . . Low Security (%) 100 | 100 100 100 Level 1 . | . . . Level 2 . | . . . Level 3 . | . . . Level 4 . | . . . Level 5 . | . . . High Security . | . . . Max Security . | . . . Peak Influence 160 | . 157 160 Initial 61 | . . 61 Average 89 | . 60 115 Influence Increases 614 | . 237 377 Destroy 0b10 Robot/C 340 | . 160 180 Destroy 0b10 Robot/NC 25 | . 15 10 Destroy Leader 62 | . 32 30 Disable Machine 75 | . . 75 Destroy Structure 37 | . . 37 Lose Combat Pursuer 75 | . 30 45 Influence Decreases 508 | . 90 418 Entered New Map 86 | . . 86 Time Decay 312 | . 90 222 Lost Part 110 | . . 110 Squads Dispatched 2 | . 1 1 Investigation 1 | . . 1 Extermination . | . . . Reinforcement 1 | . 1 . Assault . | . . . Garrison . | . . . Intercept . | . . . Searches Triggered . | . . . Construction Impeded . | . . . Haulers Reinforced . | . . . Active Scanning Responses . | . . . Cargo Convoy Interrupts . | . . . Stealth | -11 -10 -9 --------- Run | Yrd Mat Mat Distress Signals 4 | . 1 3 Communications Jammed . | . . . Distress Signals . | . . . Times Spotted 36 | . 15 21 Peak Tracking Total 6 | . 5 6 Tactical Retreats 3 | . 1 2 Traps | -11 -10 -9 ------- Run | Yrd Mat Mat Traps Triggered 2 | . . 2 Indirectly . | . . . Trap Hack Attempts . | . . . Triggered . | . . . Disarmed . | . . . Reprogrammed . | . . . Reused . | . . . Traps Extracted . | . . . Installed . | . . . Triggered . | . . . Machines | -11 -10 -9 ---------- Run | Yrd Mat Mat Machines Disabled 5 | . . 5 Max in Single Turn 2 | . . 2 Machines Repaired . | . . . Machines Dismantled . | . . . Machines Sabotaged . | . . . Overloaded Fab Kills . | . . . Hacking | -11 -10 -9 --------- Run | Yrd Mat Mat Machines Accessed . | . . . Terminals . | . . . Fabricators . | . . . Repair Stations . | . . . Recycling Units . | . . . Scanalyzers . | . . . Garrison Access . | . . . Total Hacks . | . . . Successful . | . . . Failed . | . . . Catastrophic . | . . . Database Lockouts . | . . . Manual . | . . . Terminals . | . . . Fabricators . | . . . Repair Stations . | . . . Recycling Units . | . . . Scanalyzers . | . . . Garrison Access . | . . . Terminal Hacks . | . . . Fabricator Hacks . | . . . Repair Station Hacks . | . . . Recycling Unit Hacks . | . . . Scanalyzer . | . . . Garrison Access Hacks . | . . . Unauthorized Hacks . | . . . Terminals . | . . . Fabricators . | . . . Repair Stations . | . . . Recycling Units . | . . . Scanalyzers . | . . . Garrison Access . | . . . Data Cores Recovered 1 | . . 1 Used . | . . . Hacking Detections . | . . . Full Trace Events . | . . . Feedback Events . | . . . Feedback Blocked . | . . . Robot Schematics Acquired . | . . . Robots Built . | . . . Authchips . | . . . Time . | . . . Total Robot Build Rating . | . . . Part Schematics Acquired . | . . . Parts Built . | . . . Authchips . | . . . Time . | . . . Total Part Build Rating . | . . . Part Studies Acquired . | . . . Parts Repaired . | . . . Time . | . . . Parts Recycled . | . . . Recycled Matter . | . . . Retrieved Matter . | . . . Retrieved Components . | . . . Parts Scanalyzed . | . . . Part Schematics Acquired . | . . . Parts Damaged . | . . . Bothacking | -11 -10 -9 ------------ Run | Yrd Mat Mat Used RIF Installer . | . . . Robots Hacked . | . . . Non-combat . | . . . Combat . | . . . Robot Hacks Applied . | . . . Relay Couplers Released . | . . . Fabnet Peak Effective % . | . . . Robots Rewired . | . . . Allies Hacked . | . . . Hacks Repelled . | . . . Allies | -11 -10 -9 -------- Run | Yrd Mat Mat Total Allies . | . . . Largest Group . | . . . Highest-Rated Group . | . . . Highest-Rated Ally . | . . . Total Orders . | . . . Ally Attacks . | . . . Total Damage . | . . . Kills . | . . . Allies Corrupted . | . . . Allies Melted . | . . . Intel | -11 -10 -9 ------- Run | Yrd Mat Mat Active Infowar (turns) 263 | . 113 150 Optics 263 | . 113 150 Robot Analysis Total . | . . . Derelict Logs Recovered . | . . . Drone Launches . | . . . Drone Recoveries . | . . . Exploration | -11 -10 -9 ------------- Run | Yrd Mat Mat Turns Passed 769 | 48 259 462 Spaces Moved 760 | 45 170 545 Core 118 | 6 . 112 Treads . | . . . Legs . | . . . Wheels 360 | 39 170 151 Hover . | . . . Flight 282 | . . 282 Fastest Speed 31 | 50 80 31 Average Speed 60 | 85 89 49 Slowest Speed 100 | 100 90 100 Overloaded Moves . | . . . Propulsion Burnouts . | . . . Robots Hopped 1 | . . 1 Potential Cave-ins . | . . . Cave-ins Triggered . | . . . Exploration Rate (%) 28 | 4 30 51 Regions Visited 2 Branch Regions . Pre-discovered Areas . | . . . Known Exits Taken . | . . . Unknown Exits Taken 2 | 1 1 . Scrap Searched . | . . . Spaces Dug . | . . . Terrain Destroyed 35 | . . 35 Melee . | . . . Projectile . | . . . AOE 35 | . . 35 Terrain Rammed . | . . . Walls Destroyed . | . . . Machines Disabled . | . . . Actions | -11 -10 -9 --------- Run | Yrd Mat Mat Total 932 | 51 221 660 Wait 21 | . 5 16 Move 756 | 44 169 543 Hop 1 | . . 1 Pick Up 17 | 1 9 7 Fast Attach 17 | 6 2 9 Attach 15 | . . 15 Detach 8 | . 1 7 Swap 9 | . 3 6 Drop 15 | . 4 11 Fire 39 | . 28 11 Melee 34 | . . 34 Ram . | . . . Kick . | . . . Crush . | . . . Escape Stasis . | . . . Rewire . | . . . Trap . | . . . Miscellaneous . | . . . Route ------- -11/Scrapyard -10/Materials -9/Materials (discovered 2 exits: [*Mat] / [*Min]) History --------- Turn | Location | Event 18 | -11/Scrapyard | Discovered new exit (range 15) 49 | -11/Scrapyard | Entered Materials 105 | -10/Materials | Discovered new exit (range 15) 308 | -10/Materials | Entered another Materials area 308 | -9/Materials | Evolved 2 slots: Propulsion x2 349 | -9/Materials | Discovered new exit (range 5) 391 | -9/Materials | Discovered new exit (range 5) 573 | -9/Materials | Lost 4 parts (1p3n) 677 | -9/Materials | Core integrity fell below 50% 699 | -9/Materials | Core integrity fell below 20% 703 | -9/Materials | Released all parts (4) 723 | -9/Materials | Lost 4 parts (1p3n) 770 | -9/Materials | Destroyed by Y-45 Defender with Beam Rifle Last Messages --------------- 00683_ Scanalyzer disabled. 00683_ Destroyed Aluminum Leg. 00683_ G-47 Trooper system corrupted by crushing effect. 00684_ Wheel destroyed. 00687_ Critical hit (Burn: +37). 00688_ Wheel destroyed. 00692_ G-47 Trooper destroyed. 00692_ Ion Engine destroyed. 00703_ Released Signal Interpreter. 00703_ Released Sml. Storage Unit. 00703_ Released Mace. 00703_ Released Com. Wheel. 00703_ Acquired 45 matter. 00706_ Acquired Weight Redist. System. 00715_ Dropped Datajack. 00716_ Acquired Datajack. 00718_ Acquired Great Maul. 00744_ Datajack destroyed. 00757_ W-16 Scout sends out distress signal. Map ----- +----------------------------------------------------+ | ??????????# # """ ## #???# | | ??????????# + """"" ## #???# | | ??????????# # """"" ???# #?### | | ??????????############### # """"" ???# #?# | | ????????????????????????# # """ ????# #?# | | ????????????????????????# ######????## ### | | ????????????????????????# ########### ## | | ????????????????????????# T | | ????????????????????????# "" ## | | ????????????????????????# ####+# | | ????????????????????????# ########+### #????? | | ????????????????????????# #????? #######????? | | ????????????????????????# w#??? #??????????? | | ????????????????????????# #?#""" #??????????? | | ????????????????????????# #?#""" #??????????? | | ????????????????????????# t#?#""" #??????????? | | ????????????????????????# #?#""" #??????????? | | ????????????????????????# #?# #??????????? | | ????????????????????????# #?? #??????????? | | ????????????????????????#r #?? #??????????? | | ????????????????????????# #??#########??????????? | | ????????????????????????# #?????????????????????? | | ????????????????????????# #?????????????????????? | | ????????????????????????# #?????????????????????? | | ????????????????????????# #?????????????????????? | | ????????????????????????#@ #?????????????????????? | | ????????????????????????# #?????????????????????? | | ????????????????????????# #?????????????????????? | | ????????????????????????# #?????????????????????? | | ????????????????????????# #?????????????????????? | | ????????????????????????# #?????????????????????? | | ????????????????????????# #?????????????????????? | | ????????????????????????# #?????????????????????? | | ????????????????????????# #?????????????????????? | | ????????????????????????? #?????????????????????? | | ????????????????????????? ?????????????????????? | | ????????????????????????? ?????????????????????? | | ????????????????????????? ?????????????????????? | | ?????????????????????????Y ?????????????????????? | | ????????????????????????? ?????????????????????? | | ????????????????????????? ?????????????????????? | | ?????????????????????????????????????????????????? | | ?????????????????????????????????????????????????? | | ?????????????????????????????????????????????????? | | ?????????????????????????????????????????????????? | | ?????????????????????????????????????????????????? | | ?????????????????????????????????????????????????? | | ?????????????????????????????????????????????????? | | ?????????????????????????????????????????????????? | | ?????????????????????????????????????????????????? | +----------------------------------------------------+ Best States ------------- Heat Dissipation 28 Energy Generation 10 Energy Capacity 250 Matter Stores 300 Matter Capacity 300 Sight Range 18 Terrain Scan Density 10 Additional Mass Support 6 Evasion (%) 63 Item Schematics ----------------- None Robot Schematics ------------------ None Fabricated ------------ Nothing Repaired ---------- Nothing Studied --------- None Alien Tech Used ----------------- None Achievements -------------- None Challenges ------------ None Game ------ Seed MakeshiftNanofilamentsBank Manual? 0 Play Time 00:09:45 Cumulative 39.8 hours Start 2025.10.27 @ 05:32:36 End 2025.10.28 @ 17:34:15 Sessions 1 Manual Loads 0 Difficulty Rogue Special Mode None Game No. 162 Rogue 162 Adventurer 0 Explorer 0 Win Type - Total 0 Types 0/0/0/0/0/0/0/0/0/0 Lore% 12 Gallery% 32 Achievement% 20 Wizard Run 0 Options --------- Layout 1 ASCII 0 Keyboard 1 Movement Vi Keybinds 0 Fullscreen 1 Font 16/SmallcapsGlow Map View 55x38 Zoom Use 0% Tactical HUD 1 Map Filters NONE Filters NONE Steam 1 RUN: 461da05b-5cfb-4c5e-88b8-b255231375ce